Cogmind - Beta 17 @@@ ROGUE MODE // 2026.08.18 @ 00:56:19 Player: THN-L0C Result: Self-destructed Performance ------------- Evolutions (0) 0 Regions Visited (4) 800 Robots Destroyed (15) 75 Value Destroyed (281) 281 Prototype IDs (0) 0 Alien Tech Used (0) 0 Bonus (0) 0 TOTAL SCORE: 1156 Bonus ------- None Cogmind --------- Core Integrity 121/250 Matter 295/300 Energy 160/160 System Corruption 0% Temperature Cool (0) Movement Treading (160) Location -9/Mines Parts ------- > --- POWER (1) -------- Light Nuclear Core > --- PROPULSION (2) --- Light Treads Light Treads > --- UTILITY (2) ------ Medium Storage Unit > --- WEAPON (2) ------- Light Assault Rifle Minigun > --- INVENTORY (10) --- Improved Signal Interpreter Improved Terrain Scanner Melee Analysis Suite Target Analyzer Tractor Beam Assault Rifle Slug Cannon Mining Laser Great Maul Blade Saw Peak State ------------ > --- POWER ------------ Light Nuclear Core > --- PROPULSION ------- Light Treads Light Treads > --- UTILITY ---------- Medium Storage Unit > --- WEAPON ----------- Light Assault Rifle Minigun > --- INVENTORY -------- Small Storage Unit Improved Signal Interpreter Improved Terrain Scanner Target Analyzer Tractor Beam Assault Rifle Slug Cannon Mining Laser Great Maul [Rating: 12] Favorites ----------- Power Light Nuclear Core Engine Ion Engine Power Core Light Nuclear Core Propulsion Light Treads Treads Light Treads Leg Aluminum Leg Wheel Compact Wheel Utility Medium Storage Unit Device Seismic Detector Storage Medium Storage Unit Weapon Light Assault Rifle Ballistic Gun Light Assault Rifle Build | -11 -10 -10 -10 -9 ------- Run | Yrd Mat Min Exi Min Slots Evolved . | . . . . . Power . | . . . . . Propulsion . | . . . . . Utility . | . . . . . Weapon . | . . . . . Parts Attached 14 | 11 1 2 . . Power 2 | 1 . 1 . . Engine 1 | 1 . . . . Core 1 | . . 1 . . Reactor . | . . . . . Propulsion 5 | 5 . . . . Treads 2 | 2 . . . . Leg 1 | 1 . . . . Wheel 2 | 2 . . . . Hover . | . . . . . Flight . | . . . . . Utility 4 | 3 1 . . . Device 2 | 2 . . . . Storage 2 | 1 1 . . . Processor . | . . . . . Hackware . | . . . . . Protection . | . . . . . Artifact . | . . . . . Weapon 3 | 2 . 1 . . Energy Gun . | . . . . . Energy Cannon . | . . . . . Ballistic Gun 3 | 2 . 1 . . Ballistic Cannon . | . . . . . Launcher . | . . . . . Special Weapon . | . . . . . Impact Weapon . | . . . . . Slashing Weapon . | . . . . . Piercing Weapon . | . . . . . Special Melee Weapon . | . . . . . Unidentified Prototypes . | . . . . . Parts Lost 2 | . . 2 . . Power 1 | . . 1 . . Propulsion . | . . . . . Utility 1 | . . 1 . . Weapon . | . . . . . Highest Loss Streak 2 | . . 2 . . To Critical Strikes . | . . . . . Average Backups 6 | . 3 5 10 10 Power . | . . . . . Propulsion . | . . . . . Utility 3 | . 2 3 5 5 Weapon 3 | . 1 2 5 5 Tool/Special . | . . . . . Unused Backups 8 | . . . . 8 Power . | . . . . . Propulsion . | . . . . . Utility 4 | . . . . 4 Weapon 4 | . . . . 4 Tool/Special . | . . . . . Average Slot Usage (%) 88 | . 100 85 85 85 Engine 3 | . 14 . . . Core 10 | . . 12 14 14 Treads 28 | . 28 28 28 28 Device 3 | . 14 . . . Storage 14 | . 14 14 14 14 Ballistic Gun 28 | . 28 28 28 28 Peak Build Rating 12 | 7 7 12 12 12 Average Rating 9 | 5 7 9 12 12 On Entrance 7 | . 7 7 12 12 Avg Prop Armor Cover (%) 10 | 10 . . . . Naked Turns . | . . . . . Heaviest Build 19 | 14 19 19 19 . Greatest Support 40 | 40 40 40 40 . Greatest Overweight (x) . | . . . . . Average Overweight (x) . | . . . . . Largest Inventory Capacity 10 | 8 10 10 10 10 Average Capacity 9 | 7 9 10 10 10 Most Carried 10 | 3 4 10 10 10 Average Carried 6 | . 3 5 10 10 Final Capacity 10 | 8 10 10 10 10 Final Carried 10 | 3 4 10 10 10 Class Distribution -------------------- 100% | Mutant Dominant Class ---------------- Mutant | -10/Materials Mutant | -10/Mines Mutant | -10/Exiles Mutant | -9/Mines Resources | -11 -10 -10 -10 -9 ----------- Run | Yrd Mat Min Exi Min Matter Collected 541 | 337 92 112 . . Remotely 130 | 130 . . . . Salvage Created 458 | 103 209 146 . . Parts 34 | 8 13 13 . . Haulers Intercepted . | . . . . . Recyclers Shooed 2 | 1 . 1 . . Parts Field Recycled . | . . . . . Retrieved Matter . | . . . . . Parts Self-Destructed . | . . . . . Prevented . | . . . . . Parts Restored . | . . . . . Kills | -11 -10 -10 -10 -9 ------- Run | Yrd Mat Min Exi Min Combat Hostiles Destroyed 11 | . 6 5 . . Guns 11 | . 6 5 . . Classes Destroyed 5 | 2 3 . . . Builder 1 | . 1 . . . Tunneler 2 | 2 . . . . Recycler 1 | 1 . . . . Swarmer 6 | . 3 3 . . Grunt 5 | . 3 2 . . Best Kill Streak 4 | 3 4 3 . . Combat Bots Only 3 | . 3 3 . . Max Kills in Single Turn 2 | 2 1 1 . . Gunslinging . | . . . . . Exploded . | . . . . . Melee . | . . . . . Uniques/NPCs Destroyed . | . . . . . Combat | -11 -10 -10 -10 -9 -------- Run | Yrd Mat Min Exi Min Hostile Shots Fired 72 | . 36 29 . 7 Missed 16 | . 7 6 . 3 Hits 56 | . 29 23 . 4 Projectile 56 | . 29 23 . 4 Damage Taken 586 | . 280 274 . 32 Core 129 | . 36 86 . 7 Absorbed by Shields . | . . . . . Core Remaining (%) 100 | 100 . . . . Volleys Fired 55 | 8 25 21 . 1 Largest 2 | 2 2 2 . 2 Hottest 45 | 40 40 40 . 45 Shots Fired 110 | 16 50 42 . 2 Gun 110 | 16 50 42 . 2 Cannon . | . . . . . Launcher . | . . . . . Special . | . . . . . Kinetic 110 | 16 50 42 . 2 Thermal . | . . . . . Explosive . | . . . . . Electromagnetic . | . . . . . Robot Hit Streak 14 | 4 7 14 . 1 Robot Miss Streak 3 | 2 3 3 . 1 Penetration Max . | . . . . . Secondary Targets 1 | . 1 . . . Max Gunslinging Chain 1 | . 1 . . . Shots Hit Robots 65 | 10 26 28 . 1 Core Hits 28 | 4 14 10 . . Critical Kills . | . . . . . Critical Parts Destroyed 2 | . 1 1 . . Critical Strikes 2 | . 1 1 . . Destroy 2 | . 1 1 . . Melee Attacks . | . . . . . Impact . | . . . . . Slashing . | . . . . . Piercing . | . . . . . Sneak Attacks . | . . . . . Combat Hostiles . | . . . . . Follow-up Attacks . | . . . . . Damage Inflicted 707 | 120 279 292 . 16 Guns 707 | 120 279 292 . 16 Cannons . | . . . . . Explosions . | . . . . . Melee . | . . . . . Ramming . | . . . . . Kinetic 707 | 120 279 292 . 16 Thermal . | . . . . . Explosive . | . . . . . Electromagnetic . | . . . . . Impact . | . . . . . Slashing . | . . . . . Piercing . | . . . . . Highest Corruption . | . . . . . Average Corruption . | . . . . . Corruption Purged . | . . . . . Corruption Blocked . | . . . . . Overload Shots . | . . . . . Overflow Damage . | . . . . . Projectiles . | . . . . . Explosions . | . . . . . Melee . | . . . . . Knockbacks . | . . . . . Impact . | . . . . . Kinetic . | . . . . . Secondary . | . . . . . Self-Inflicted Damage . | . . . . . Shots . | . . . . . Rammed 2 | 1 . 1 . . Targets Rammed 2 | 1 . 1 . . Kicked . | . . . . . Crushed . | . . . . . Highest Temperature 18 | . 18 14 . 8 Average Temperature 5 | . 9 4 . 6 Received Heat Transfer 192 | . 87 105 . . Siege Activations . | . . . . . Martial Activations . | . . . . . Shielding Activations . | . . . . . Robots Disrupted . | . . . . . Combat Hostiles . | . . . . . Robots Corrupted . | . . . . . Combat Hostiles . | . . . . . Parts Fried . | . . . . . Impact Corruptions . | . . . . . Robots Melted . | . . . . . Combat Hostiles . | . . . . . Parts Melted 1 | . . 1 . . Heat Transferred . | . . . . . Parts Sabotaged . | . . . . . Parts Stolen . | . . . . . Parts Stripped . | . . . . . Power Chain Reactions . | . . . . . Alert | -11 -10 -10 -10 -9 ------- Run | Yrd Mat Min Exi Min Maximum Alert Level . | . . . . . Low Security (%) 100 | 100 100 100 . 100 Level 1 . | . . . . . Level 2 . | . . . . . Level 3 . | . . . . . Level 4 . | . . . . . Level 5 . | . . . . . High Security . | . . . . . Max Security . | . . . . . Peak Influence 100 | 10 100 93 . . Initial 28 | . . 28 . . Average 31 | 1 34 39 . . Influence Increases 299 | 15 159 125 . . Destroy 0b10 Robot/C 220 | . 120 100 . . Destroy 0b10 Robot/NC 20 | 15 5 . . . Destroy Leader 50 | . 30 20 . . Successful Hack 9 | . 4 5 . . Influence Decreases 299 | 15 84 200 . . Entered New Map 47 | . . 47 . . Time Decay 232 | 15 84 133 . . Lost Part 20 | . . 20 . . Squads Dispatched 3 | . 2 1 . . Investigation 1 | . . 1 . . Extermination . | . . . . . Reinforcement 2 | . 2 . . . Assault . | . . . . . Garrison . | . . . . . Intercept . | . . . . . Searches Triggered . | . . . . . Construction Impeded . | . . . . . Haulers Reinforced . | . . . . . Active Scanning Responses . | . . . . . Cargo Convoy Interrupts . | . . . . . Stealth | -11 -10 -10 -10 -9 --------- Run | Yrd Mat Min Exi Min Distress Signals . | . . . . . Communications Jammed . | . . . . . Distress Signals . | . . . . . Times Spotted 18 | . 8 6 . 4 Peak Tracking Total 4 | . 4 3 . 4 Tactical Retreats . | . . . . . Traps | -11 -10 -10 -10 -9 ------- Run | Yrd Mat Min Exi Min Traps Triggered . | . . . . . Indirectly . | . . . . . Trap Hack Attempts . | . . . . . Triggered . | . . . . . Disarmed . | . . . . . Reprogrammed . | . . . . . Reused . | . . . . . Traps Extracted . | . . . . . Installed . | . . . . . Triggered . | . . . . . Machines | -11 -10 -10 -10 -9 ---------- Run | Yrd Mat Min Exi Min Machines Disabled . | . . . . . Max in Single Turn . | . . . . . Machines Repaired . | . . . . . Machines Dismantled . | . . . . . Machines Sabotaged . | . . . . . Overloaded Fab Kills . | . . . . . Hacking | -11 -10 -10 -10 -9 --------- Run | Yrd Mat Min Exi Min Machines Accessed 3 | . 1 2 . . Terminals 2 | . 1 1 . . Fabricators . | . . . . . Repair Stations . | . . . . . Recycling Units . | . . . . . Scanalyzers . | . . . . . Garrison Access . | . . . . . Total Hacks 4 | . 2 2 . . Successful 3 | . 1 2 . . Failed 1 | . 1 . . . Catastrophic . | . . . . . Database Lockouts . | . . . . . Manual 2 | . 2 . . . Terminals 3 | . 2 1 . . Fabricators . | . . . . . Repair Stations . | . . . . . Recycling Units . | . . . . . Scanalyzers . | . . . . . Garrison Access . | . . . . . Terminal Hacks 2 | . . 2 . . Open Door 1 | . . 1 . . Zone Layout 1 | . . 1 . . Fabricator Hacks . | . . . . . Repair Station Hacks . | . . . . . Recycling Unit Hacks . | . . . . . Scanalyzer . | . . . . . Garrison Access Hacks . | . . . . . Unauthorized Hacks 1 | . 1 . . . Terminals 1 | . 1 . . . Skim 1 | . 1 . . . Fabricators . | . . . . . Repair Stations . | . . . . . Recycling Units . | . . . . . Scanalyzers . | . . . . . Garrison Access . | . . . . . Data Cores Recovered . | . . . . . Used . | . . . . . Hacking Detections 1 | . 1 . . . Full Trace Events . | . . . . . Feedback Events . | . . . . . Feedback Blocked . | . . . . . Robot Schematics Acquired . | . . . . . Robots Built . | . . . . . Authchips . | . . . . . Time . | . . . . . Total Robot Build Rating . | . . . . . Part Schematics Acquired . | . . . . . Parts Built . | . . . . . Authchips . | . . . . . Time . | . . . . . Total Part Build Rating . | . . . . . Part Studies Acquired . | . . . . . Parts Repaired . | . . . . . Time . | . . . . . Parts Recycled . | . . . . . Recycled Matter . | . . . . . Retrieved Matter . | . . . . . Retrieved Components . | . . . . . Parts Scanalyzed . | . . . . . Part Schematics Acquired . | . . . . . Parts Damaged . | . . . . . Bothacking | -11 -10 -10 -10 -9 ------------ Run | Yrd Mat Min Exi Min Used RIF Installer . | . . . . . Robots Hacked . | . . . . . Non-combat . | . . . . . Combat . | . . . . . Robot Hacks Applied . | . . . . . Relay Couplers Released . | . . . . . Fabnet Peak Effective % . | . . . . . Robots Rewired . | . . . . . Allies Hacked . | . . . . . Hacks Repelled . | . . . . . Allies | -11 -10 -10 -10 -9 -------- Run | Yrd Mat Min Exi Min Total Allies . | . . . . . Largest Group . | . . . . . Highest-Rated Group . | . . . . . Highest-Rated Ally . | . . . . . Total Orders . | . . . . . Ally Attacks . | . . . . . Total Damage . | . . . . . Kills . | . . . . . Allies Corrupted . | . . . . . Allies Melted . | . . . . . Intel | -11 -10 -10 -10 -9 ------- Run | Yrd Mat Min Exi Min Active Infowar (turns) 306 | 12 282 12 . . Seismic 306 | 12 282 12 . . Robot Analysis Total . | . . . . . Derelict Logs Recovered . | . . . . . Drone Launches . | . . . . . Drone Recoveries . | . . . . . Exploration | -11 -10 -10 -10 -9 ------------- Run | Yrd Mat Min Exi Min Turns Passed 1367 | 119 282 322 641 3 Spaces Moved 752 | 62 131 158 401 . Core 8 | 8 . . . . Treads 719 | 29 131 158 401 . Legs . | . . . . . Wheels 25 | 25 . . . . Hover . | . . . . . Flight . | . . . . . Fastest Speed 50 | 50 160 160 160 . Average Speed 156 | 120 160 160 160 . Slowest Speed 160 | 160 160 160 160 . Overloaded Moves . | . . . . . Propulsion Burnouts . | . . . . . Robots Hopped . | . . . . . Potential Cave-ins . | . . . . . Cave-ins Triggered . | . . . . . Exploration Rate (%) 31 | 4 31 34 88 2 Regions Visited 4 Branch Regions 3 Pre-discovered Areas . | . . . . . Known Exits Taken . | . . . . . Unknown Exits Taken 4 | 1 1 1 1 . Scrap Searched 1 | . . 1 . . Spaces Dug . | . . . . . Terrain Destroyed . | . . . . . Melee . | . . . . . Projectile . | . . . . . AOE . | . . . . . Terrain Rammed . | . . . . . Walls Destroyed . | . . . . . Machines Disabled . | . . . . . Actions | -11 -10 -10 -10 -9 --------- Run | Yrd Mat Min Exi Min Total 834 | 87 158 188 400 1 Wait 3 | 1 2 . . . Move 748 | 61 130 157 400 . Hop . | . . . . . Pick Up 9 | 3 . 6 . . Fast Attach 9 | 8 . 1 . . Attach . | . . . . . Detach 1 | 1 . . . . Swap 5 | 3 1 1 . . Drop 2 | 1 . 1 . . Fire 55 | 8 25 21 . 1 Melee . | . . . . . Ram . | . . . . . Kick . | . . . . . Crush 2 | 1 . 1 . . Escape Stasis . | . . . . . Rewire . | . . . . . Trap . | . . . . . Miscellaneous . | . . . . . Route ------- -11/Scrapyard -10/Materials -10/Mines (discovered 2 exits: [*Mat] / [*Exi]) -10/Exiles (discovered 2 exits: [*Min x2]) -9/Mines History --------- Turn | Location | Event 5 | -11/Scrapyard | Discovered new exit (range 16) 120 | -11/Scrapyard | Entered Materials 304 | -10/Materials | Build established: Mutant 388 | -10/Materials | Discovered new exit (range 6) 402 | -10/Materials | Entered Mines 545 | -10/Mines | A weapon hastily lodged in a ceiling crevice suddenly fell to the ground 603 | -10/Mines | Discovered new exit (range 9) 608 | -10/Mines | Met a Derelict shopkeep closing up shop 716 | -10/Mines | Deemed a non-threat by the Exiles lab entrance 717 | -10/Mines | Discovered new exit (range 5) 724 | -10/Mines | Entered Exiles 724 | -10/Exiles | Found Exiles lab abandoned 752 | -10/Exiles | Discovered new exit (range 15) 1341 | -10/Exiles | Discovered new exit (range 15) 1365 | -10/Exiles | Entered Mines 1367 | -9/Mines | Core integrity fell below 50% 1368 | -9/Mines | Self-destructed Last Messages --------------- investigation squad. 00612_ K4-P59(g): "Take whatever you can and run for it!" 00618_ G-34 Mercenary destroyed. 00630_ Acquired Great Maul. 00633_ Acquired Target Analyzer. 00643_ Acquired Imp. Signal Interpreter. 00651_ Acquired Melee Analysis Suite. 00664_ Dropped Sml. Storage Unit. 00665_ Acquired Blade Saw. 00682_ Acquired 30 matter. 00690_ R-06 Scavenger collects Aluminum Leg. 00696_ R-06 Scavenger collects Sml. Laser. 00716_ "No threat detected, you may enter." 00717_ EXIT=FOUND LOCATION=UNKNOWN GOAL=ESCAPE 00752_ EXIT=FOUND LOCATION=UNKNOWN GOAL=ESCAPE 01367_ S-10 Pest destroyed. Map ----- +----------------------------------------------------+ | ??????????????????????????????????????????? | | ??????????????????????????????????????????? | | ??????????????????????????????????????????? | | ??????????????????????????????????????????? | | ??????????????????????????????????????????? | | ??????????????????????????????????????????? | | ??????????????????????????????????????????? | | ??????????????????????????????????????????? | | ??????????????????????????????????????????? | | ??????????????????????????????????????????? | | ??????????????????????????????????????????? | | ??????????????????????????????????????????? | | ??????????????????????????????????????????? | | ??????????????????????????????????????????? | | ??????????????????????????????????????????? | | ??????????????????????????????????????????? | | ?????????????????????????? ???????????????? | | ?????????????????????????? #??????????????? | | ?????????????????????????? #??????????????? | | ???????????????????????### ####???????????? | | ???????????????????????# #???????????? | | ???????????????????????# """ #???????????? | | ???????????????????????# """ #???????????? | | ???????????????????????# """ #???????????? | | ???????????????????????# s s#???????????? | | ???????????????????????# @ s #???????????? | | ???????????????????????# % #???????????? | | ???????????????????????########???????????? | | ??????????????????????????????????????????? | | ??????????????????????????????????????????? | | ??????????????????????????????????????????? | | ??????????????????????????????????????????? | | ??????????????????????????????????????????? | | ??????????????????????????????????????????? | | ??????????????????????????????????????????? | | ??????????????????????????????????????????? | | ??????????????????????????????????????????? | | ??????????????????????????????????????????? | | ??????????????????????????????????????????? | | ??????????????????????????????????????????? | | ??????????????????????????????????????????? | | ??????????????????????????????????????????? | | ??????????????????????????????????????????? | | ??????????????????????????????????????????? | | ??????????????????????????????????????????? | | ??????????????????????????????????????????? | | ??????????????????????????????????????????? | | ??????????????????????????????????????????? | | ??????????????????????????????????????????? | | ??????????????????????????????????????????? | +----------------------------------------------------+ Best States ------------- Heat Dissipation 25 Energy Generation 14 Energy Capacity 250 Matter Stores 300 Matter Capacity 300 Sight Range 16 Terrain Scan Density 10 Evasion (%) 50 Recoil Reduction 2 Item Schematics ----------------- None Robot Schematics ------------------ None Fabricated ------------ Nothing Repaired ---------- Nothing Studied --------- None Alien Tech Used ----------------- None Achievements -------------- None Challenges ------------ None Game ------ Seed AutogunResetField Manual? 0 Play Time 00:03:46 Cumulative 445.5 hours Start 2026.08.18 @ 00:52:38 End 2026.08.18 @ 00:56:19 Sessions 1 Manual Loads 0 Difficulty Rogue Special Mode None Game No. 334 Rogue 334 Adventurer 0 Explorer 0 Win Type - Total 9 Types 4/0/3/2/0/0/0/0/0/0 Lore% 78 Gallery% 74 Achievement% 56 Wizard Run 0 Options --------- Layout 2 ASCII 0 Keyboard 1 Movement Vi Keybinds 0 Fullscreen 2 Font 32/SmallcapsGlow Map View 77x44 Zoom Use 0% Tactical HUD 1 Map Filters NONE Filters NONE Steam 1 RUN: cdf80834-c877-44b8-bb82-410bf2414709